bitfinex/quotes_ETHUSD_20220227
["timestamp","ask_amount","ask_price","bid_price","bid_amount"]
[1646000659657,1.26542556,2622.4,2622.3,0.23970572]
[1646000659658,2.78774841,2622.4,2622.3,0.23970572]
[1646000661064,2.78824651,2622.4,2622.3,0.23970572]
[1646000661263,2.78824982,2622.4,2622.3,0.23970572]
[1646000661466,1.26542556,2622.4,2622.3,0.23970572]
[1646000662269,0.00192831,2622.9,2622.3,0.23970572]
[1646000662469,1.52237428,2623.0,2622.4,0.3828]
[1646000662666,1.52237428,2623.0,2622.6,0.2392]
[1646000662868,1.52237428,2623.0,2622.7,1.41496672]
[1646000663307,1.52237428,2623.0,2622.9,0.2392]
[1646000663508,0.50192831,2623.3,2622.9,0.2392]
[1646000663707,1.5224145,2623.2,2622.9,0.2392]
[1646000664107,1.8224145,2623.2,2622.9,0.2392]
[1646000664414,0.45024673,2623.2,2622.9,0.2392]
[1646000664808,1.52231868,2623.1,2622.9,0.2392]
[1646000665006,2.02231868,2623.1,2622.9,0.2392]
[1646000665211,0.96256796,2623.1,2622.9,0.2392]
[1646000665410,0.8,2623.1,2622.9,0.2392]
[1646000665611,0.98948742,2623.1,2622.9,0.2392]
[1646000667660,1.52229962,2623.0,2622.9,0.2392]
[1646000668459,1.5220907,2623.0,2622.9,0.2392]
[1646000669162,1.5220907,2623.0,2622.3,1.90733]
[1646000669761,1.07781816,2622.8,2622.3,1.90733]
[1646000670163,1.07781816,2622.8,2622.1,1.9075]
[1646000670164,1.37781816,2622.8,2622.1,1.9075]
[1646000670365,1.67424738,2622.7,2622.1,1.9075]
[1646000670561,2.52174738,2622.6,2622.1,1.9075]
[1646000670808,1.52174738,2622.5,2621.9,0.2392]
[1646000671005,1.18159112,2622.4,2621.9,0.2392]
[1646000671206,1.52176876,2622.3,2622.1,0.2392]
[1646000671409,1.42156196,2622.2,2622.1,0.2392]
[1646000672009,1.42156196,2622.2,2621.7,0.73080953]
[1646000672409,1.42156196,2622.2,2621.4,0.152489]
[1646000672609,1.57406196,2622.2,2621.4,0.152489]
[1646000672808,2.57406196,2622.2,2621.2,0.95412]
[1646000673008,1.16241476,2621.5,2621.2,0.95412]
[1646000673207,0.17032599,2621.6,2621.2,0.95412]
[1646000673409,0.00192831,2622.1,2621.2,0.95412]
[1646000674862,1.25995184,2621.6,2621.2,0.95412]
[1646000675056,0.18960091,2621.7,2621.2,0.95412]
[1646000675260,0.00192831,2622.1,2621.2,0.95412]
[1646000675460,1.51572503,2622.1,2621.2,0.95412]
[1646000677061,0.00192831,2622.1,2621.2,0.95412]
[1646000677468,1.51573623,2622.1,2621.2,0.95412]
[1646000677866,1.0,2621.9,2620.8,0.95428]
[1646000678204,2.67728993,2621.8,2620.8,0.95428]
[1646000678404,0.15442831,2621.8,2620.8,0.95428]
[1646000678607,1.21605427,2621.4,2620.9,1.07232399]
[1646000678806,1.21605427,2621.4,2620.8,0.95428]
[1646000679106,1.51605427,2621.4,2620.8,0.95428]
[1646000679306,1.69229957,2621.4,2620.8,0.95428]
[1646000680707,0.2488,2621.3,2620.5,0.1526]
[1646000680910,0.2488,2621.3,2620.4,4.82094]
[1646000681309,2.69229957,2621.4,2620.4,4.82094]
[1646000681508,0.2488,2621.2,2620.4,4.82094]
[1646000681708,1.14126231,2620.9,2620.5,0.07979291]
[1646000681952,1.44126231,2620.9,2620.4,0.95444]
[1646000682156,1.65197201,2620.9,2620.4,0.95444]
[1646000683358,0.5107097,2620.9,2620.5,0.07979607]
[1646000683757,0.3,2620.8,2620.5,0.07979607]
[1646000683958,0.49680386,2620.8,2620.5,0.07979607]
[1646000684157,0.19680386,2620.8,2620.5,0.07979607]
[1646000684357,0.46280106,2620.7,2620.5,0.07979607]
[1646000685171,0.16280106,2620.7,2620.5,0.07979607]
[1646000685559,0.2488,2621.2,2620.5,0.07979607]
[1646000686015,1.66621535,2621.2,2620.5,0.07979607]
[1646000686414,1.41741535,2621.2,2620.5,0.07979607]
[1646000686615,1.90117243,2621.2,2620.5,0.07979607]
[1646000687021,1.90117243,2621.2,2620.5,0.07663328]
[1646000689221,2.14997243,2621.2,2620.5,0.07663328]
[1646000690262,1.10602185,2620.6,2620.5,0.07663328]
[1646000690463,0.19385128,2620.7,2620.5,0.07663328]
[1646000690660,0.3,2620.6,2620.5,0.07663328]
[1646000690861,0.18324314,2620.6,2620.5,0.07663328]
[1646000691060,0.73028106,2621.2,2620.5,0.07663328]
[1646000691663,1.01568267,2621.1,2620.5,0.07663328]
[1646000691865,0.71340226,2621.2,2620.5,0.07663328]
[1646000692163,0.71270701,2621.2,2620.5,0.07663328]
[1646000692569,0.2488,2620.8,2620.0,0.95458]
[1646000692867,5.0,2621.0,2619.8,13.2353]
[1646000692868,0.2488,2620.5,2619.8,13.2353]
[1646000693070,3.5,2620.9,2619.8,5.783]
[1646000693071,0.2488,2620.3,2619.8,5.783]
[1646000693306,0.22392001,2620.3,2619.8,5.783]
[1646000693509,1.03837254,2620.0,2619.5,0.60762647]
[1646000693711,1.03837254,2620.0,2618.7,4.20109]
[1646000693712,3.5,2619.9,2619.2,0.95486]
[1646000693912,3.5,2619.9,2618.8,0.1526]
[1646000693913,15.781,2619.9,2618.8,0.1526]
[1646000694113,0.5,2618.9,2618.4,1.91003]
[1646000694310,0.96343157,2618.9,2618.4,1.91003]
[1646000694509,1.31801477,2618.6,2618.1,1.21993394]
[1646000694712,0.46343157,2618.9,2618.2,0.1527]
[1646000694913,0.46343157,2618.9,2618.1,1.21993394]
[1646000695718,1.05727173,2618.8,2618.1,1.21993394]
[1646000695913,0.46343157,2618.9,2618.1,1.21993394]
[1646000696956,1.03576413,2618.8,2618.1,1.21993394]
[1646000697363,1.03576413,2618.8,2618.0,0.95526]
[1646000697861,4.68846413,2618.8,2617.9,1.1861]
[1646000698265,4.68846413,2618.8,2618.7,1.0]
[1646000698461,4.82547263,2618.8,2618.7,1.0]
[1646000698862,5.82547263,2618.8,2618.7,1.0]
[1646000699063,4.82547263,2618.8,2618.7,1.0]
[1646000699265,2.32547263,2618.8,2618.7,1.0]
[1646000699663,1.32547263,2618.8,2618.7,1.0]
[1646000700466,4.82547263,2618.8,2618.7,1.0]
[1646000700705,4.82547263,2618.8,2617.9,1.95529]
[1646000700706,1.322103,2618.3,2617.9,1.95529]
[1646000700914,0.18570704,2618.4,2617.9,1.95529]
[1646000701112,0.46983667,2618.3,2617.9,1.95529]
[1646000701309,0.3,2618.3,2617.9,1.95529]
[1646000701509,0.50094726,2618.3,2617.9,1.95529]
[1646000701710,3.6527,2618.8,2617.9,1.95529]
[1646000701911,0.46460532,2618.3,2617.9,1.95529]
[1646000702112,0.16460532,2618.3,2617.9,1.95529]
[1646000702311,0.3,2618.3,2617.9,1.95529]
[1646000702510,1.71796938,2618.4,2617.9,1.95529]
[1646000702711,1.8809863,2618.4,2617.9,1.0]
[1646000704212,0.46301692,2618.4,2617.9,1.0]
[1646000704856,0.46301692,2618.4,2617.9,2.33809]
[1646000705055,0.2232,2618.6,2617.9,2.33809]
[1646000705255,0.2232,2618.6,2618.3,1.22138584]
[1646000705455,0.2232,2618.6,2618.4,1.0]
[1646000706256,0.5232,2618.6,2618.4,1.0]
[1646000706460,0.2232,2618.6,2618.4,1.0]
[1646000707461,0.2232,2618.6,2617.6,10.01499]
[1646000707663,0.2232,2618.6,2617.6,10.39779]
[1646000707963,0.67881812,2618.6,2617.7,1.0]
[1646000708210,0.2232,2618.5,2617.7,1.0]
[1646000708814,0.5232,2618.5,2617.7,1.0]
[1646000709019,0.71526966,2618.5,2617.7,1.0]
[1646000709218,1.21107086,2618.2,2617.7,2.32876568]
[1646000709420,1.21107086,2618.2,2617.7,1.0]
[1646000709621,1.51107086,2618.2,2617.6,1.91059]
[1646000709823,1.67278912,2618.2,2617.6,1.91059]
[1646000711621,1.23569229,2617.8,2617.6,1.91059]
[1646000712068,0.3,2617.8,2617.6,1.91059]
[1646000712266,0.46003051,2617.8,2617.6,1.91059]
[1646000717522,0.45887101,2617.8,2617.6,1.91059]
[1646000717720,0.45887101,2617.8,2617.4,1.0]
[1646000718320,0.45887101,2617.8,2617.3,1.36129024]
[1646000719123,0.16003051,2617.8,2617.3,1.36129024]
[1646000719319,0.2232,2618.3,2617.3,1.74409024]
[1646000719559,1.4732,2618.5,2618.1,1.22422049]
[1646000719759,3.5,2618.4,2618.1,1.22422049]
[1646000719958,3.5,2618.4,2617.2,9.63824]
[1646000720159,0.39275225,2618.5,2617.2,8.63824]
[1646000720360,0.2232,2618.3,2617.2,9.25544]
[1646000720760,0.2232,2618.3,2617.3,0.3828]
[1646000720964,1.12992255,2618.3,2617.8,1.22742437]
[1646000721164,0.37089369,2618.6,2617.3,0.3828]
[1646000721363,3.9527,2618.8,2617.3,0.3828]
[1646000721566,4.80962608,2618.8,2617.3,0.3828]
[1646000721769,5.00309719,2618.8,2617.3,0.3828]
[1646000722567,1.06430606,2618.4,2617.8,1.36281287]
[1646000722969,1.06430606,2618.4,2617.3,1.0]
[1646000723213,1.36430606,2618.4,2617.3,1.0]
[1646000723414,1.51446497,2618.4,2617.3,1.0]
[1646000724518,1.51446497,2618.4,2617.3,0.97914]
[1646000725116,0.45015891,2618.4,2617.6,1.2706939]
[1646000725716,0.60285891,2618.4,2617.6,1.2706939]
[1646000725916,0.16832147,2618.5,2617.6,1.6534939]
[1646000726116,4.80448737,2618.9,2618.4,1.388637]
[1646000726317,3.66544235,2618.9,2618.0,0.3828]
[1646000727363,0.51267674,2618.8,2618.0,0.3828]
[1646000727663,0.51267674,2618.8,2618.4,1.41446423]
[1646000728063,0.51267674,2618.8,2618.0,0.3828]
[1646000728264,0.0224,2618.6,2618.1,0.95513]
[1646000729066,0.0224,2618.6,2618.2,1.09358431]
[1646000729265,0.0224,2618.6,2618.2,2.02738431]
[1646000735068,0.0224,2618.6,2618.2,1.64458431]
[1646000736068,0.0224,2618.6,2618.2,2.02738431]
[1646000737268,0.0224,2618.6,2618.2,0.551]
[1646000739309,1.42562322,2618.4,2618.2,0.551]
[1646000739509,0.20670701,2618.5,2618.1,0.95513]
[1646000739709,0.0224,2618.6,2618.1,0.95513]
[1646000740710,1.36783391,2618.5,2618.1,0.95513]
[1646000741111,1.66783391,2618.5,2618.1,0.95513]
[1646000741315,1.85779122,2618.5,2618.1,0.95513]
[1646000742276,0.48995731,2618.5,2618.1,0.95513]
[1646000742476,0.18995731,2618.5,2618.1,1.107785]
[1646000742680,0.0224,2618.6,2618.1,0.95513]
[1646000743477,1.20136381,2618.4,2618.1,0.95513]
[1646000743678,1.50136381,2618.4,2618.1,0.95513]
[1646000743978,0.45101898,2618.4,2618.1,0.95513]
[1646000744178,0.0224,2618.6,2618.1,0.95513]
[1646000745185,1.59741745,2618.5,2618.1,0.95513]
[1646000745581,1.89741745,2618.5,2618.1,0.95513]
[1646000745814,0.3,2618.5,2618.1,0.95513]
[1646000746012,0.19812617,2618.5,2618.1,0.95513]
[1646000746215,1.92383216,2618.6,2618.1,1.107784]
[1646000746616,1.92383216,2618.6,2618.1,0.95513]
[1646000747016,0.50215946,2618.6,2618.1,0.95513]
[1646000747219,0.25,2619.1,2618.1,1.33793]
[1646000747419,1.59727415,2619.0,2618.3,0.3828]
[1646000747621,0.21854525,2619.1,2618.5,0.3828]
[1646000747923,3.75,2619.6,2618.5,1.88884]
[1646000748120,1.59710683,2619.5,2619.1,1.40572273]
[1646000748318,1.59710683,2619.5,2618.6,0.1527]
[1646000748520,2.11389358,2619.5,2618.6,0.1527]
[1646000748718,1.59710683,2619.4,2618.6,0.1527]
[1646000749572,1.59710683,2619.4,2619.0,1.09675205]
[1646000750171,1.89710683,2619.4,2619.0,1.09675205]
[1646000750373,1.59710683,2619.3,2619.0,1.09675205]
[1646000750677,0.18513005,2619.4,2619.0,1.09675205]
[1646000750871,0.1527,2619.9,2619.0,1.09675205]
[1646000751073,3.5,2619.6,2619.0,1.09675205]
[1646000751273,1.59695846,2619.5,2619.0,1.09675205]
[1646000751876,1.89695846,2619.5,2619.0,1.09675205]
[1646000752075,1.59695846,2619.4,2619.0,1.09675205]
[1646000752676,0.46201672,2619.5,2619.0,1.09675205]
[1646000753514,0.46201672,2619.5,2619.1,0.551]
[1646000753715,0.46201672,2619.5,2619.1,0.7037]
[1646000753914,0.46201672,2619.5,2619.0,0.30045205]
[1646000754114,0.46201672,2619.5,2619.1,0.551]
[1646000755825,0.46201672,2619.5,2619.2,0.1527]
[1646000756120,1.13337102,2620.1,2619.2,0.7037]
[1646000756419,1.5967156,2620.0,2619.2,0.71873385]
[1646000757466,1.5967156,2620.0,2619.8,1.15035081]
[1646000757664,1.4878281,2620.3,2619.8,1.15035081]
[1646000757865,5.09661349,2620.2,2619.8,1.15035081]
[1646000758067,3.71029243,2620.2,2619.8,1.15035081]
[1646000758474,0.3,2620.1,2619.8,1.15035081]
[1646000758669,0.47516629,2620.1,2619.8,1.15035081]
[1646000759269,0.47516629,2620.1,2619.8,1.70135081]
[1646000761628,0.17516629,2620.1,2619.8,1.70135081]
[1646000761826,1.4510777,2620.9,2619.8,1.70135081]
[1646000761827,1.6148925,2620.9,2620.4,1.39439896]
[1646000762029,1.59632691,2620.8,2620.4,0.551]
[1646000762228,0.56784202,2620.3,2619.9,1.2163]
[1646000762429,0.56784202,2620.3,2620.0,0.551]
[1646000762627,0.56784202,2620.3,2620.1,0.551]
[1646000762829,0.86784202,2620.3,2620.2,0.551]
[1646000763029,0.86784202,2620.3,2620.2,1.7505158]
[1646000763328,1.07636122,2620.3,2620.2,1.7505158]
[1646000768416,1.07159288,2620.3,2620.2,1.7505158]
[1646000769821,0.56784202,2620.3,2620.2,1.7505158]
[1646000771023,0.86784202,2620.3,2620.2,1.7505158]
[1646000771422,0.86784202,2620.3,2620.2,1.76669198]
[1646000771423,1.03624895,2620.3,2620.2,1.76669198]
[1646000772969,0.56784202,2620.3,2620.2,1.76669198]
[1646000774170,0.86784202,2620.3,2620.2,1.76669198]
[1646000774370,1.03472408,2620.3,2620.2,1.76669198]
[1646000777425,1.03472408,2620.3,2620.2,1.21569198]
[1646000781173,1.03472408,2620.3,2620.2,0.01617618]
[1646000786232,0.56784202,2620.3,2620.2,0.01617618]
[1646000786433,0.56784202,2620.3,2620.2,0.01551003]
[1646000791119,1.06858869,2620.3,2620.2,0.01617618]
[1646000794324,1.06754102,2620.3,2620.2,0.01617618]
[1646000795175,0.56784202,2620.3,2620.2,0.01617618]
[1646000796377,0.86784202,2620.3,2620.2,0.01617618]
[1646000796578,0.86784202,2620.3,2620.1,0.04743439]
[1646000796779,1.03195829,2620.3,2620.1,0.04743439]
[1646000797380,1.03195829,2620.3,2620.1,0.19999139]
[1646000797381,1.41184386,2620.2,2620.1,0.19999139]
[1646000797580,1.41184386,2620.2,2620.1,0.04743439]
[1646000797782,0.86784202,2620.3,2620.1,0.04743439]
[1646000799017,0.56784202,2620.3,2620.1,0.04743439]
[1646000799419,0.56784202,2620.3,2620.2,1.131]
[1646000799619,0.56784202,2620.3,2620.2,1.682]
[1646000800820,0.86784202,2620.3,2620.2,1.682]
[1646000801618,0.86784202,2620.3,2620.2,1.69750961]
[1646000801819,0.86784202,2620.3,2620.2,1.54490961]
[1646000805079,0.25,2621.1,2620.2,13.65770961]
[1646000805273,0.71660157,2621.5,2621.0,5.21565401]
[1646000805471,2.55418073,2621.6,2621.4,5.9784]
[1646000805472,1.35804935,2621.6,2621.4,5.9784]
[1646000805720,1.35804935,2621.6,2621.5,0.07980068]
[1646000805919,1.35804935,2621.6,2621.5,0.63080068]
[1646000806118,1.38600433,2622.4,2621.5,1.84250649]
[1646000806119,0.00192831,2622.3,2621.5,1.84250649]
[1646000806320,3.32697967,2622.6,2621.5,13.49270581]
[1646000806522,3.3261,2622.6,2622.5,0.9784]
[1646000806723,8.23256757,2622.9,2622.5,0.9784]
[1646000806922,7.4525,2622.9,2622.5,0.9784]
[1646000807123,1.76427657,2622.7,2622.5,0.9784]
[1646000807322,0.66621334,2622.7,2622.5,0.9784]
[1646000807521,0.66621334,2622.7,2622.2,1.18430918]
[1646000807727,0.66621334,2622.7,2622.6,0.9784]
[1646000808826,0.67228712,2622.7,2622.6,0.9784]
[1646000809024,0.97228712,2622.7,2622.6,0.9784]
[1646000810069,0.97228712,2622.7,2622.0,0.9784]
[1646000810275,0.3,2622.6,2622.0,0.9784]
[1646000810471,0.452879,2622.6,2622.0,0.9784]
[1646000810671,0.452879,2622.6,2622.1,1.25879928]
[1646000810872,0.51870828,2622.6,2622.1,1.25879928]
[1646000811172,0.51870828,2622.6,2622.3,0.9784]
[1646000813317,0.51870828,2622.6,2622.4,0.9784]
[1646000814620,1.71691668,2622.6,2622.4,0.9784]
[1646000814821,0.51870828,2622.6,2622.4,0.9784]
[1646000815224,0.21870828,2622.6,2622.4,0.9784]
[1646000815425,0.3,2622.5,2622.4,0.9784]
[1646000815621,0.00192293,2623.1,2622.4,0.9784]
[1646000815826,0.3,2622.5,2622.4,0.9784]
[1646000816023,1.21446453,2622.9,2622.4,0.9784]
[1646000816223,1.51446453,2622.9,2622.4,0.9784]
[1646000816623,1.66631699,2622.9,2622.4,0.9784]
[1646000816960,0.45185246,2622.9,2622.4,0.9784]
[1646000817168,0.15185246,2622.9,2622.4,0.9784]
[1646000817364,0.47804425,2622.8,2622.4,0.9784]
[1646000817565,0.47804425,2622.8,2622.5,0.04112132]
[1646000817765,0.3,2622.7,2622.5,0.04112132]
[1646000818075,1.11532755,2623.0,2622.5,0.04112132]
[1646000818267,1.41532755,2623.0,2622.5,0.04112132]
[1646000818466,1.27619645,2623.0,2622.5,0.04112132]
[1646000818666,1.11532755,2623.0,2622.5,0.04112132]
[1646000819668,1.41532755,2623.0,2622.5,0.04112132]
[1646000820167,0.49731841,2623.0,2622.5,0.04112132]
[1646000820367,0.3,2622.9,2622.5,0.04112132]
[1646000820576,0.15542406,2622.9,2622.5,0.04112132]
[1646000820811,0.00192293,2623.3,2622.5,0.04112132]
[1646000821412,1.40710826,2623.1,2622.5,0.04112132]
[1646000821814,0.46664836,2623.1,2622.5,0.04112132]
[1646000822420,0.46664836,2623.1,2622.7,0.040952]
[1646000822421,0.47161762,2623.1,2622.7,0.040952]
[1646000822622,30.0,2623.0,2622.7,0.040952]
[1646000824122,30.0,2623.0,2622.7,1.019352]
[1646000824324,30.0,2623.0,2622.8,1.5294]
[1646000824578,30.0,2623.0,2622.9,0.9784]
[1646000824779,30.0,2623.0,2622.9,2.89748829]
[1646000825178,28.29891501,2623.0,2622.9,3.89748829]
[1646000825378,28.29891501,2623.0,2622.9,2.89748829]
[1646000825581,28.29891501,2623.0,2622.9,3.89748829]
[1646000825887,28.59891501,2623.0,2622.9,3.89748829]
[1646000826878,28.29891501,2623.0,2622.9,3.89748829]
[1646000827681,22.57943501,2623.0,2622.9,3.89748829]
[1646000827880,22.57943501,2623.0,2622.9,3.95881902]
[1646000828213,16.86025501,2623.0,2622.9,3.95881902]
[1646000828617,11.14100501,2623.0,2622.9,3.95881902]
[1646000829715,11.14100501,2623.0,2622.9,2.95881902]
[1646000829919,11.14100501,2623.0,2622.9,1.59073073]
[1646000837419,11.14100501,2623.0,2622.9,1.61091828]
[1646000838220,11.14100501,2623.0,2622.9,1.05991828]
[1646000840066,11.14100501,2623.0,2622.9,1.61091828]
[1646000843617,11.14100501,2623.0,2622.9,1.05991828]
[1646000845221,9.97711785,2623.0,2622.9,1.05991828]
[1646000847174,11.33305695,2623.0,2622.9,1.05991828]
[1646000847775,9.97711785,2623.0,2622.9,1.05991828]
[1646000848174,3.38727734,2623.0,2622.9,1.05991828]
[1646000848377,0.00192307,2623.6,2622.9,6.69064352]
[1646000848577,0.45147002,2623.7,2623.0,0.07972524]
[1646000848578,0.3,2623.1,2623.0,0.07972524]
[1646000848775,0.45339309,2623.7,2623.0,0.63072524]
[1646000848776,0.00192307,2623.7,2623.0,0.63072524]
[1646000848980,1.21586498,2623.8,2623.1,0.07972524]
[1646000849176,1.21778805,2623.8,2623.2,0.551]
[1646000849581,1.21778805,2623.8,2623.3,0.0797175]
[1646000849779,1.21586498,2623.8,2623.4,0.551]
[1646000849978,0.3,2623.8,2623.5,0.0797175]
[1646000850179,0.00192307,2624.3,2623.5,0.0797175]
[1646000850822,1.56683785,2624.3,2623.7,0.9784]
[1646000851021,1.86491478,2624.3,2623.7,0.9784]
[1646000851219,2.80572601,2624.2,2623.7,0.9784]
[1646000851421,2.80572601,2624.2,2623.4,0.551]
[1646000851422,1.56491478,2624.1,2623.4,0.551]
[1646000851621,1.56491478,2624.1,2623.9,0.9784]
[1646000852826,0.1991017,2624.2,2623.5,1.37384738]
[1646000852827,0.1991017,2624.2,2624.0,0.9784]
[1646000853123,0.1690301,2624.4,2624.0,0.9784]
[1646000853322,1.56433336,2624.3,2623.8,1.50392]
[1646000853523,1.56433336,2624.3,2624.1,0.9784]
[1646000853723,0.37628752,2624.4,2624.2,0.9784]
[1646000853923,0.1690301,2624.4,2624.2,0.9784]
[1646000854123,1.56430043,2624.3,2624.2,0.9784]
[1646000854323,1.86430043,2624.3,2624.2,0.9784]
[1646000854567,2.03279282,2624.3,2624.2,0.9784]
[1646000854776,0.46849239,2624.3,2624.2,0.9784]
[1646000855071,2.032432,2624.3,2624.2,0.9784]
[1646000856272,0.46849239,2624.3,2624.2,0.9784]
[1646000861968,0.46849239,2624.3,2624.2,0.99739606]
[1646000862477,0.3,2624.3,2624.2,0.99739606]
[1646000862674,0.45024873,2624.3,2624.2,0.99739606]
[1646000863075,0.3,2624.3,2624.2,1.54839606]
[1646000863276,0.48479137,2624.3,2624.2,1.54839606]
[1646000863575,0.18479137,2624.3,2624.2,1.54839606]
[1646000863876,0.68346014,2624.4,2624.2,1.54839606]
[1646000864677,0.68346014,2624.4,2624.3,0.9784]
[1646000864879,0.4690301,2624.4,2624.3,0.9784]
[1646000865081,0.65598232,2624.4,2624.3,0.9784]
[1646000865378,0.59038409,2624.4,2624.3,0.9784]
[1646000868934,0.59038409,2624.4,2624.3,1.5294]
[1646000869134,0.35598232,2624.4,2624.3,1.5294]
[1646000869335,0.1690301,2624.4,2624.3,1.5294]
[1646000870771,0.1690301,2624.4,2624.3,13.6422]
[1646000871073,0.1690301,2624.4,2624.3,1.9122]
[1646000871271,0.1690301,2624.4,2624.3,2.9122]
[1646000871470,0.1690301,2624.4,2624.3,1.5294]
[1646000871670,0.1690301,2624.4,2624.3,2.60909641]
[1646000872076,0.1690301,2624.4,2624.3,13.33909641]
[1646000872277,0.1690301,2624.4,2624.3,14.72189641]
[1646000872474,0.1690301,2624.4,2624.3,2.65582501]
[1646000872680,0.1690301,2624.4,2624.3,1.67187582]
[1646000872875,0.1690301,2624.4,2624.3,1.59217941]
[1646000875224,0.36857969,2624.5,2624.3,1.59217941]
[1646000877577,0.36857969,2624.5,2624.3,1.5939881]
[1646000879779,0.36857969,2624.5,2624.4,1.14452684]
[1646000880181,0.36857969,2624.5,2624.4,0.551]
[1646000881430,1.59289813,2624.5,2624.4,0.501]
[1646000881625,0.36857969,2624.5,2624.4,0.501]
[1646000882230,0.36857969,2624.5,2624.4,0.51670378]
[1646000885275,0.33172173,2624.5,2624.4,0.51670378]
[1646000888082,0.33172173,2624.5,2624.4,0.59638931]
[1646000890119,0.33172173,2624.5,2623.9,0.9784]
[1646000890120,11.63515232,2625.0,2623.6,2.90959678]
[1646000890322,11.63515232,2625.0,2624.1,1.0]
[1646000890323,0.03321208,2624.7,2624.1,1.0]
[1646000890723,0.03321208,2624.7,2624.0,1.90549]
[1646000890930,0.03321208,2624.7,2623.9,1.50388]
[1646000891723,3.53321208,2624.7,2623.7,1.0]
[1646000891975,3.53321208,2624.7,2623.4,0.551]
[1646000892376,4.9999567,2624.7,2624.4,0.02797255]
[1646000892574,1.4999567,2624.7,2624.4,0.02797255]
[1646000892776,0.9784,2624.5,2623.2,0.93889466]
[1646000892975,3.5,2624.4,2623.0,1.48989466]
[1646000893174,0.9784,2624.0,2623.0,1.48989466]
[1646000893374,1.1635018,2624.0,2623.0,1.48989466]
[1646000893578,0.3,2623.9,2623.0,1.48989466]
[1646000893776,0.51372939,2623.9,2623.1,0.93889466]
[1646000893980,0.21372939,2623.9,2623.0,1.48989466]
[1646000894178,1.49491545,2624.0,2623.0,1.48989466]
[1646000894779,3.5,2623.9,2623.0,1.48989466]
[1646000895178,4.4784,2623.9,2623.0,1.48989466]
[1646000896022,3.5,2623.9,2623.0,1.48989466]
[1646000896626,4.4784,2623.9,2623.0,1.48989466]
[1646000897227,4.4784,2623.9,2623.0,0.551]
[1646000898431,0.9784,2623.9,2623.0,0.551]
[1646000898839,4.4784,2623.9,2623.0,0.551]
[1646000899032,3.5,2623.9,2623.0,0.551]
[1646000899331,4.01651545,2624.0,2623.0,0.551]
[1646000899770,5.99491545,2624.0,2623.0,0.551]
[1646000899969,0.9784,2623.9,2623.0,0.551]
[1646000900171,3.5,2623.8,2623.0,0.551]
[1646000900371,3.5,2623.8,2622.7,0.93889466]
[1646000900572,0.21252461,2623.9,2622.7,0.93889466]
[1646000900769,0.9784,2623.0,2622.7,0.93889466]
[1646000900972,0.9784,2623.0,2622.6,0.93889466]
[1646000901170,0.00284412,2623.0,2622.6,0.93889466]
[1646000901574,3.91288974,2623.8,2622.6,0.93889466]
[1646000901871,0.0024,2623.2,2622.7,0.93889466]
[1646000902077,0.0024,2623.2,2622.6,0.93889466]
[1646000902276,0.0024,2623.2,2622.5,0.93889466]
[1646000902776,0.0024,2623.2,2622.6,0.93889466]
[1646000903222,0.0024,2623.2,2622.5,0.93889466]
[1646000903426,6.21288974,2623.8,2622.5,0.93889466]
[1646000903624,6.21288974,2623.8,2622.6,0.93889466]
[1646000904026,6.21288974,2623.8,2622.3,2.94293522]
[1646000904027,6.21288974,2623.8,2622.5,0.93889466]
[1646000904225,0.0016,2623.2,2622.5,0.93889466]
[1646000905529,0.0016,2623.2,2622.4,0.93889466]
[1646000905928,6.21288974,2623.8,2622.4,0.93889466]
[1646000906226,6.21288974,2623.8,2622.5,0.93889466]
[1646000906427,0.0016,2623.3,2622.5,0.93889466]
[1646000906731,6.21288974,2623.8,2622.4,0.93889466]
[1646000906969,0.0016,2623.2,2622.4,0.93889466]
[1646000908076,6.21288974,2623.8,2622.5,0.93889466]
[1646000908275,0.70625927,2623.1,2622.5,0.93889466]
[1646000908574,0.20625927,2623.1,2622.5,0.93889466]
[1646000908776,3.5,2623.6,2623.4,0.70264]
[1646000908975,3.225,2623.7,2623.4,0.70264]
[1646000908976,3.5,2623.7,2623.4,0.70264]
[1646000909575,4.8,2623.7,2623.4,0.70264]
[1646000909876,4.9602364,2623.7,2623.4,0.70264]
[1646000910075,1.59423672,2623.6,2623.4,0.70264]
[1646000910275,3.5,2623.5,2623.4,0.70264]
[1646000910476,4.5,2623.5,2623.4,0.70264]
[1646000911120,6.09425416,2623.5,2623.4,0.70264]
[1646000911321,4.5,2623.5,2623.4,0.70264]
[1646000914025,1.0,2623.5,2623.4,0.70264]
[1646000914224,4.5,2623.5,2623.4,0.70264]
[1646000914478,1.0,2623.5,2623.4,0.70264]
[1646000915275,0.75339622,2623.3,2622.1,0.3828]
[1646000915678,1.75339622,2623.3,2622.2,0.5]
[1646000915880,2.05339622,2623.3,2622.1,0.3828]
[1646000916082,3.5,2623.2,2622.1,0.3828]
[1646000918323,3.5,2623.2,2621.9,0.93889466]
[1646000918525,3.5,2623.2,2621.8,0.93889466]
[1646000918526,4.5,2623.2,2621.8,0.93889466]
[1646000918725,1.3,2623.0,2621.6,0.93889466]
[1646000918927,1.0,2622.8,2621.4,0.93889466]
[1646000919127,5.0948104,2622.7,2621.1,0.93889466]
[1646000919326,1.0,2622.4,2621.0,0.93889466]
[1646000919524,1.0,2622.1,2621.0,0.93889466]
[1646000919925,1.0,2622.0,2621.0,0.93889466]
[1646000920126,1.0,2622.0,2620.9,0.93889466]
[1646000920327,0.3,2622.0,2620.9,0.93889466]
[1646000920526,0.50477799,2622.0,2620.9,0.93889466]
[1646000920726,5.00477799,2622.0,2620.9,0.93889466]
[1646000921129,6.00477799,2622.0,2620.9,0.93889466]
[1646000921328,2.50477799,2622.0,2620.9,0.93889466]
[1646000921530,3.5,2621.9,2620.9,0.93889466]
[1646000921729,4.5,2621.9,2620.9,0.93889466]
[1646000922977,4.5,2621.9,2620.6,0.93889466]
[1646000923177,4.5,2621.9,2620.4,0.93889466]
[1646000923374,4.5,2621.9,2620.3,1.48989466]
[1646000923775,4.5,2621.9,2620.5,0.93889466]
[1646000923975,4.5,2621.9,2620.4,0.93889466]
[1646000924374,4.5,2621.9,2620.3,2.48989466]
[1646000924777,4.5,2621.9,2620.3,1.48989466]
[1646000925082,1.0,2621.8,2620.3,0.551]
[1646000925277,3.5,2621.7,2620.3,0.551]